Cogmind - Beta 14 @@@ ROGUE MODE // 2025.03.11 @ 00:57:01 Player: morimori Result: Destroyed by 5Z-ETT(R) with Subdweller Laser Performance ------------- Evolutions (0) 0 Regions Visited (3) 600 Robots Destroyed (46) 230 Value Destroyed (904) 904 Prototype IDs (2) 40 Alien Tech Used (0) 0 Bonus (-11) -11 TOTAL SCORE: 1763 Bonus ------- Friendly Fire -11 Cogmind --------- Core Integrity 0/250 Matter 169/300 Energy 160/160 System Corruption 0% Temperature Cool (6) Movement Rolling (130) Ox2 Location -10/Subcaves Parts ------- > --- POWER (1) -------- Light Nuclear Core > --- PROPULSION (2) --- Compact Wheel Compact Wheel > --- UTILITY (2) ------ Huge Storage Unit Seismic Detector > --- WEAPON (2) ------- Grenade Launcher Makeshift Axe > --- INVENTORY (25) --- Subdweller Power Source Hover Unit Hover Unit Hover Unit Hover Unit Heat Sink Large Storage Unit High-capacity Battery (250) Visual Processing Unit Sensor Array Improved Terrain Scanner Light Armor Plating EM Pulse Gun EM Pulse Gun EM Pulse Gun EM Pulse Gun Light Assault Rifle Light Assault Rifle Subdweller Machine Gun Subdweller Machine Gun Battle Cannon Battle Cannon Subdweller Shrapnel Launcher Piercing Trap Peak State ------------ > --- POWER ------------ Light Nuclear Core > --- PROPULSION ------- Wheel Compact Wheel > --- UTILITY ---------- Huge Storage Unit Makeshift Kinetic Plating > --- WEAPON ----------- EM Pulse Gun Makeshift Axe > --- INVENTORY -------- Subdweller Power Source Compact Wheel Hover Unit Hover Unit Hover Unit Hover Unit Heat Sink Large Storage Unit High-capacity Battery Visual Processing Unit Sensor Array Improved Terrain Scanner Seismic Detector Light Armor Plating EM Pulse Gun EM Pulse Gun EM Pulse Gun Light Assault Rifle Light Assault Rifle Subdweller Machine Gun Subdweller Machine Gun Grenade Launcher Subdweller Shrapnel Launcher Piercing Trap [Rating: 18] Favorites ----------- Power Ion Engine Engine Ion Engine Power Core Light Nuclear Core Propulsion Wheel Wheel Wheel Utility Huge Storage Unit Device Seismic Detector Storage Huge Storage Unit Protection Light Armor Plating Weapon Light Assault Rifle Energy Gun EM Pulse Gun Ballistic Gun Light Assault Rifle Launcher Grenade Launcher Slashing Weapon Makeshift Axe Build | -11 -10 -10 -10 ------- Run | Yrd Mat Min Sub Slots Evolved . | . . . . Power . | . . . . Propulsion . | . . . . Utility . | . . . . Weapon . | . . . . Parts Attached 69 | 7 22 10 30 Power 8 | 1 3 1 3 Engine 7 | 1 3 1 2 Core 1 | . . . 1 Reactor . | . . . . Propulsion 11 | 2 4 2 3 Treads . | . . . . Leg . | . . . . Wheel 11 | 2 4 2 3 Hover . | . . . . Flight . | . . . . Utility 15 | 2 4 2 7 Device 7 | 1 2 1 3 Storage 3 | 1 2 . . Processor . | . . . . Hackware . | . . . . Protection 5 | . . 1 4 Artifact . | . . . . Weapon 35 | 2 11 5 17 Energy Gun 5 | 1 1 . 3 Energy Cannon . | . . . . Ballistic Gun 13 | 1 6 3 3 Ballistic Cannon . | . . . . Launcher 12 | . 4 2 6 Special Weapon . | . . . . Impact Weapon . | . . . . Slashing Weapon 5 | . . . 5 Piercing Weapon . | . . . . Special Melee Weapon . | . . . . Unidentified Prototypes . | . . . . Parts Lost 8 | . . 3 5 Power 1 | . . . 1 Propulsion 2 | . . 1 1 Utility 2 | . . . 2 Weapon 3 | . . 2 1 Highest Loss Streak 1 | . . 1 1 To Critical Strikes . | . . . . Average Slot Usage (%) 99 | . 100 99 99 Engine 12 | . 14 14 12 Core 1 | . . . 1 Wheel 27 | . 28 27 28 Device 12 | . 14 9 12 Storage 14 | . 14 14 14 Protection 1 | . . 4 1 Energy Gun 2 | . 1 . 4 Ballistic Gun 19 | . 25 27 12 Launcher 2 | . . . 4 Slashing Weapon 3 | . . . 6 Peak Build Rating 18 | 7 10 10 18 Average Rating 10 | 5 9 9 12 On Entrance 6 | . 7 10 10 Naked Turns . | . . . . Heaviest Build 102 | 12 90 92 102 Greatest Support 32 | 20 26 32 32 Greatest Overweight (x) 5 | 1 3 5 3 Average Overweight (x) 2 | . 2 2 2 Largest Inventory Capacity 25 | 8 25 25 25 Average Capacity 23 | 7 22 25 25 Most Carried 25 | 6 25 25 25 Average Carried 22 | 3 19 24 24 Final Capacity 25 | 8 25 25 25 Final Carried 25 | 6 25 25 24 Class Distribution -------------------- 54% | Scavenger-Mutant 45% | Mutant Dominant Class ---------------- Mutant | -10/Materials Scavenger-Mutant | -10/Mines Scavenger-Mutant | -10/Subcaves Resources | -11 -10 -10 -10 ----------- Run | Yrd Mat Min Sub Matter Collected 1359 | 309 357 261 432 Remotely . | . . . . Salvage Created 945 | 160 459 157 169 Parts 73 | 10 33 17 13 Haulers Intercepted . | . . . . Recyclers Shooed 1 | . 1 . . Parts Field Recycled . | . . . . Retrieved Matter . | . . . . Parts Self-Destructed 7 | . . . 7 Prevented . | . . . . Kills | -11 -10 -10 -10 ------- Run | Yrd Mat Min Sub Combat Hostiles Destroyed 35 | . 15 8 12 Melee 1 | . . . 1 Guns 13 | . 10 3 . AOE 21 | . 5 5 11 Classes Destroyed 8 | 2 4 1 1 Worker 1 | . . 1 . Tunneler 5 | 4 . 1 . Recycler 1 | 1 . . . Operator 1 | . 1 . . Watcher 3 | . 3 . . Swarmer 22 | . 9 6 7 Grunt 8 | . 6 2 . Subdweller 5 | . . . 5 Best Kill Streak 4 | 4 3 3 4 Combat Bots Only 4 | . 3 3 4 Max Kills in Single Turn 3 | 1 2 3 3 Gunslinging 1 | . 1 . . Exploded 3 | . 2 3 3 Melee 1 | . . . 1 Uniques/NPCs Destroyed . | . . . . Combat | -11 -10 -10 -10 -------- Run | Yrd Mat Min Sub Hostile Shots Fired 172 | . 44 33 95 Missed 59 | . 12 5 42 Damage Taken 1549 | . 357 359 833 Core 260 | . 78 9 173 Absorbed by Shields . | . . . . Ignored by Resistances 11 | . . . 11 Regen/Repaired (Parts) 16 | . 16 . . Core Remaining (%) 100 | 100 . . . Volleys Fired 116 | 13 51 25 27 Largest 2 | 2 2 2 2 Hottest 80 | 60 60 40 80 Shots Fired 202 | 26 96 45 35 Gun 174 | 26 90 41 17 Cannon . | . . . . Launcher 28 | . 6 4 18 Special . | . . . . Kinetic 147 | 13 76 41 17 Thermal 27 | 13 14 . . Explosive 22 | . 6 4 12 Electromagnetic 6 | . . . 6 Robot Hit Streak 14 | 4 13 14 3 Robot Miss Streak 5 | 2 3 5 3 Penetration Max . | . . . . Secondary Targets 1 | . 1 . . Max Gunslinging Chain 1 | . 1 . . Shots Hit Robots 111 | 17 56 28 10 Core Hits 73 | 6 32 17 18 Critical Kills 1 | . 1 . . Critical Parts Destroyed 1 | . 1 . . Critical Strikes 2 | . 2 . . Destroy 2 | . 2 . . Melee Attacks 34 | . . . 34 Impact . | . . . . Slashing 34 | . . . 34 Piercing . | . . . . Sneak Attacks . | . . . . Combat Hostiles . | . . . . Follow-up Attacks . | . . . . Damage Inflicted 2757 | 182 887 581 1107 Guns 1055 | 182 606 252 15 Cannons . | . . . . Explosions 1666 | . 281 329 1056 Melee 36 | . . . 36 Ramming . | . . . . Kinetic 1445 | 101 463 252 629 Thermal 321 | 81 143 73 24 Explosive 940 | . 281 256 403 Electromagnetic 15 | . . . 15 Impact . | . . . . Slashing 36 | . . . 36 Piercing . | . . . . Highest Corruption . | . . . . Average Corruption . | . . . . Corruption Purged . | . . . . Corruption Blocked . | . . . . Overload Shots . | . . . . Overflow Damage 17 | . . . 17 Projectiles . | . . . . Explosions 17 | . . . 17 Melee . | . . . . Knockbacks . | . . . . Impact . | . . . . Kinetic . | . . . . Secondary . | . . . . Self-Inflicted Damage 144 | . 46 45 53 Shots 9 | . 2 4 3 Rammed . | . . . . Targets Rammed . | . . . . Kicked . | . . . . Crushed . | . . . . Highest Temperature 65 | . 65 42 . Average Temperature 22 | . 28 16 . Received Heat Transfer 420 | . 111 105 204 Siege Activations . | . . . . Robots Corrupted . | . . . . Combat Hostiles . | . . . . Parts Fried . | . . . . Impact Corruptions . | . . . . Robots Melted . | . . . . Combat Hostiles . | . . . . Parts Melted 1 | . . 1 . Heat Transferred 650 | 175 325 100 50 Parts Sabotaged . | . . . . Parts Stolen . | . . . . Parts Stripped . | . . . . Power Chain Reactions 1 | . . . 1 Alert | -11 -10 -10 -10 ------- Run | Yrd Mat Min Sub Peak Influence 354 | 25 354 315 . Initial 16 | . 16 8 . Average 146 | 10 154 156 . Maximum Alert Level 1 | . 1 1 . Low Security (%) 63 | 100 55 69 . Level 1 36 | . 44 30 . Level 2 . | . . . . Level 3 . | . . . . Level 4 . | . . . . Level 5 . | . . . . High Security . | . . . . Max Security . | . . . . Squads Dispatched 4 | . 4 . . Investigation 3 | . 3 . . Extermination . | . . . . Reinforcement 1 | . 1 . . Assault . | . . . . Garrison . | . . . . Intercept . | . . . . Searches Triggered . | . . . . Construction Impeded . | . . . . Haulers Reinforced . | . . . . Active Scanning Responses . | . . . . Cargo Convoy Interrupts . | . . . . Stealth | -11 -10 -10 -10 --------- Run | Yrd Mat Min Sub Distress Signals 1 | . 1 . . Communications Jammed . | . . . . Distress Signals . | . . . . Times Spotted 48 | . 23 8 17 Peak Tracking Total 5 | . 5 3 4 Tactical Retreats 3 | . . . 3 Traps | -11 -10 -10 -10 ------- Run | Yrd Mat Min Sub Traps Triggered 4 | . 1 . 3 Indirectly . | . . . . Trap Hack Attempts . | . . . . Triggered . | . . . . Disarmed . | . . . . Reprogrammed . | . . . . Reused . | . . . . Traps Extracted . | . . . . Installed 1 | . . . 1 Triggered 1 | . . . 1 Most Traps Carried 1 | . . . 1 Machines | -11 -10 -10 -10 ---------- Run | Yrd Mat Min Sub Machines Disabled 10 | . . 8 2 Max in Single Turn 7 | . . 7 2 Machines Repaired . | . . . . Machines Dismantled . | . . . . Machines Sabotaged . | . . . . Overloaded Fab Kills . | . . . . Hacking | -11 -10 -10 -10 --------- Run | Yrd Mat Min Sub Machines Accessed 10 | . 10 . . Terminals 7 | . 7 . . Fabricators . | . . . . Repair Stations 1 | . 1 . . Recycling Units 2 | . 2 . . Scanalyzers . | . . . . Garrison Access . | . . . . Total Hacks 42 | . 42 . . Successful 19 | . 19 . . Failed 23 | . 23 . . Catastrophic 3 | . 3 . . Database Lockouts . | . . . . Manual 23 | . 23 . . Terminals 32 | . 32 . . Fabricators . | . . . . Repair Stations 5 | . 5 . . Recycling Units 5 | . 5 . . Scanalyzers . | . . . . Garrison Access . | . . . . Terminal Hacks 8 | . 8 . . Record 1 | . 1 . . Part Schematic 2 | . 2 . . Prototype ID Bank 1 | . 1 . . Terminal Index 1 | . 1 . . Unreport Threat 2 | . 2 . . Zone Layout 1 | . 1 . . Fabricator Hacks . | . . . . Repair Station Hacks 3 | . 3 . . Scan Component 2 | . 2 . . Repair 1 | . 1 . . Recycling Unit Hacks 1 | . 1 . . Retrieve Components 1 | . 1 . . Scanalyzer . | . . . . Garrison Access Hacks . | . . . . Unauthorized Hacks 7 | . 7 . . Terminals 5 | . 5 . . Assimilate 1 | . 1 . . Botnet 3 | . 3 . . Operators 1 | . 1 . . Fabricators . | . . . . Repair Stations . | . . . . Recycling Units 2 | . 2 . . Tunnel 2 | . 2 . . Scanalyzers . | . . . . Garrison Access . | . . . . Data Cores Recovered . | . . . . Used . | . . . . Hacking Detections 9 | . 9 . . Full Trace Events 2 | . 2 . . Feedback Events . | . . . . Feedback Blocked . | . . . . Robot Schematics Acquired . | . . . . Robots Built . | . . . . Authchips . | . . . . Time . | . . . . Total Robot Build Rating . | . . . . Part Schematics Acquired 2 | . 2 . . Parts Built . | . . . . Authchips . | . . . . Time . | . . . . Total Part Build Rating . | . . . . Parts Repaired 1 | . 1 . . Time 13 | . 13 . . Parts Recycled . | . . . . Recycled Matter . | . . . . Retrieved Matter . | . . . . Retrieved Components . | . . . . Parts Scanalyzed . | . . . . Part Schematics Acquired . | . . . . Parts Damaged . | . . . . Bothacking | -11 -10 -10 -10 ------------ Run | Yrd Mat Min Sub Used RIF Installer . | . . . . Robots Hacked . | . . . . Non-combat . | . . . . Combat . | . . . . Robot Hacks Applied . | . . . . Relay Couplers Released . | . . . . Fabnet Peak Effective % . | . . . . Robots Rewired . | . . . . Allies Hacked . | . . . . Hacks Repelled . | . . . . Allies | -11 -10 -10 -10 -------- Run | Yrd Mat Min Sub Total Allies 1 | . 1 . . Largest Group 1 | . 1 1 . Highest-Rated Group 10 | . 10 9 . Highest-Rated Ally 10 | . 10 9 . Total Orders . | . . . . Ally Attacks . | . . . . Total Damage . | . . . . Kills . | . . . . Allies Corrupted . | . . . . Allies Melted . | . . . . Intel | -11 -10 -10 -10 ------- Run | Yrd Mat Min Sub Robot Analysis Total . | . . . . Derelict Logs Recovered 4 | . . 2 2 Drone Launches . | . . . . Drone Recoveries . | . . . . Exploration | -11 -10 -10 -10 ------------- Run | Yrd Mat Min Sub Turns Passed 4570 | 141 1283 835 2311 Spaces Moved 2875 | 102 802 513 1458 Core 2 | 2 . . . Treads . | . . . . Legs . | . . . . Wheels 2873 | 100 802 513 1458 Hover . | . . . . Flight . | . . . . Fastest Speed 50 | 50 80 130 119 Average Speed 129 | 79 124 135 133 Slowest Speed 175 | 95 135 175 135 Overloaded Moves . | . . . . Propulsion Burnouts . | . . . . Robots Hopped . | . . . . Cave-ins Triggered . | . . . . Exploration Rate (%) 67 | 5 95 97 73 Regions Visited 3 Branch Regions 2 Pre-discovered Areas 3 | . 2 1 . Known Exits Taken . | . . . . Unknown Exits Taken 3 | 1 1 1 . Scrap Searched 5 | . . 1 4 Spaces Dug 11 | . 6 . 5 Terrain Destroyed 156 | . 36 31 89 Melee 5 | . . . 5 Projectile . | . . . . AOE 151 | . 36 31 84 Terrain Rammed . | . . . . Walls Destroyed . | . . . . Machines Disabled . | . . . . Actions | -11 -10 -10 -10 --------- Run | Yrd Mat Min Sub Total 3487 | 132 997 614 1744 Wait 314 | 5 72 60 177 Move 2872 | 101 801 512 1458 Hop . | . . . . Pick Up 47 | 6 29 4 8 Fast Attach 9 | 7 2 . . Attach 10 | . . 3 7 Detach 2 | . 1 . 1 Swap 50 | . 20 7 23 Drop 32 | . 21 3 8 Fire 116 | 13 51 25 27 Melee 34 | . . . 34 Ram . | . . . . Kick . | . . . . Crush . | . . . . Escape Stasis . | . . . . Rewire . | . . . . Trap 1 | . . . 1 Miscellaneous . | . . . . Route ------- -11/Scrapyard -10/Materials (discovered 5 exits: [*Mat x3] / [*Min x2]) -10/Mines (discovered 4 exits: [*Mat x2] / [*Exi] / [*Sub]) -10/Subcaves (discovered 2 exits: *Mat x2) History --------- Turn | Location | Event 26 | -11/Scrapyard | Discovered new exit (range 15) 142 | -11/Scrapyard | Entered Materials 314 | -10/Materials | Build established: Mutant 369 | -10/Materials | Discovered new exit (range 9) 487 | -10/Materials | Discovered new exit (range 13) 586 | -10/Materials | Repaired Grenade Launcher 616 | -10/Materials | Discovered new exit (range 6) 822 | -10/Materials | Discovered new exit (range 14) 1174 | -10/Materials | Discovered new exit (range 16) 1425 | -10/Materials | Entered Mines 1425 | -10/Mines | Accompanied by 1 ally 1646 | -10/Mines | A weapon hastily lodged in a ceiling crevice suddenly fell to the ground 1987 | -10/Mines | Discovered new exit (range 9) 2064 | -10/Mines | Build established: Scavenger-Mutant 2089 | -10/Mines | Learned 2 Materials zone layouts 2106 | -10/Mines | Discovered new exit (range 12) 2124 | -10/Mines | Deemed a non-threat by the Exiles lab entrance 2125 | -10/Mines | Discovered new exit (range 5) 2252 | -10/Mines | Discovered new exit (range 5) 2260 | -10/Mines | Entered Subcaves 2329 | -10/Subcaves | Discovered new exit (range 15) 2339 | -10/Subcaves | Shifting Twisted Machinery released Sub. Power Source 2339 | -10/Subcaves | Shifting Twisted Machinery released Sub. Monowheel 2547 | -10/Subcaves | Identified exit to Materials 2934 | -10/Subcaves | Shifting Twisted Machinery released Sub. Machine Gun 2936 | -10/Subcaves | Shifting Twisted Machinery released Piercing Trap 2965 | -10/Subcaves | Core integrity fell below 50% 3039 | -10/Subcaves | Shifting Twisted Machinery released Sub. Machine Gun 3044 | -10/Subcaves | Shifting Twisted Machinery released Piercing Trap 3243 | -10/Subcaves | Disturbed a concealed Subdweller 4248 | -10/Subcaves | Core integrity fell below 20% 4565 | -10/Subcaves | Disturbed a concealed Subdweller 4568 | -10/Subcaves | Disturbed a concealed Subdweller 4571 | -10/Subcaves | Destroyed by 5Z-ETT(R) with Subdweller Laser Last Messages --------------- 04428_ Subatomizers dissect the Sub. Monowheel. 04430_ B2-CSC(R) destroyed. 04445_ Acquired 10 matter. 04453_ The unstable cave ceiling collapses. 04532_ Searching scrap... 04532_ Found Battle Cannon. 04532_ Found 34 Matter. 04533_ Acquired 34 matter. 04534_ Searching scrap... 04534_ Found Sub. Shrapnel Launcher. 04534_ Found 62 Matter. 04535_ Acquired 62 matter. 04537_ Subatomizers dissect the Sub. Shrapnel Launcher. 04539_ Acquired Sub. Shrapnel Launcher. 04541_ Acquired Battle Cannon. 04565_ 5Z-ETT(R) angrily emerges from the Twisted Machinery. 04566_ Wheel destroyed. 04568_ 6S-I20(R) angrily emerges from the Twisted Machinery. 04570_ 6S-I20(R) destroyed. 04571_ Subatomizers dissect the Sub. Power Source. Map ----- +----------------------------------------------------+ | ###??## ##???????????????????? | | #?## ##????????????????????? | | ### #?????????????????????? | | ## #?????????????????????? | | "####?????????????????????? | | ## ####"""" ####?????????????????????? | | ?# ##??######" ##????????????????????? | | ?# #???########## ##???????????????????? | | ## ##### ##?### ##??????????????????? | | ### ## ## #???# #??????????????????? | | ### #???## ##??????????????????? | | #?#" ## #????####???????????????????? | | #??# ### #???????????????????????????? | | ???# ### ""##???????????????????????????? | | ???# # ""##????????????????????????????? | | ?### & ""#?????????????????????????????? | | ## # ""#?????????????????????????????? | | ##?????????????????????????????? | | ##??????????????????????????????? | | ## ##??????????????????????????????? | | ##" " "" ######?????????????????????????? | | ?# """" " "# "#"#######???????????????????? | | ""###### """"""" ###?????????????????? | | ""#????# """##"" #### #?????????????????? | | ## #???#### #### #<< ## #?????????????????? | | ?##????# "" ## #*%@$# #?????????????????? | | ????????#"" #<&&<# #?????????????????? | | ????????# ##